[Event "*** SCC Grand Prix: Titled Tuesday Blitz"]
[Site "Chess.com"]
[Date "2020.08.25"]
[Round "6"]
[White "AttackSparrow"]
[Black "XDPS"]
[Result "0-1"]
[WhiteElo "2400"]
[BlackElo "2733"]
[TimeControl "180+1"]
[EndTime "11:08:53 PDT"]
[Termination "XDPS won by resignation"]

1. e4 {[%clk 0:03:00.9]} 1... c5 {[%clk 0:02:55.9]} 2. c3 {[%clk 0:02:59.8]}
2... e6 {[%clk 0:02:54.7]} 3. d4 {[%clk 0:02:59.4]} 3... d5 {[%clk 0:02:55.6]}
4. exd5 {[%clk 0:02:59.4]} 4... exd5 {[%clk 0:02:55.6]} 5. Nf3 {[%clk 0:03:00]}
5... Nc6 {[%clk 0:02:55.8]} 6. Bb5 {[%clk 0:02:58.3]} 6... Bd6 {[%clk
0:02:56.1]} 7. dxc5 {[%clk 0:02:57.4]} 7... Bxc5 {[%clk 0:02:57]} 8. O-O {[%clk
0:02:57.7]} 8... Ne7 {[%clk 0:02:57.5]} 9. Nbd2 {[%clk 0:02:57.1]} 9... O-O
{[%clk 0:02:57.8]} 10. Nb3 {[%clk 0:02:56.9]} 10... Bb6 {[%clk 0:02:58]} 11. Bd3
{[%clk 0:02:56]} 11... Qd6 {[%clk 0:02:56.2]} 12. Bg5 {[%clk 0:02:50.4]} 12...
Bg4 {[%clk 0:02:43]} 13. h3 {[%clk 0:02:19.5]} 13... Bh5 {[%clk 0:02:37]} 14.
Re1 {[%clk 0:02:15.9]} 14... h6 {[%clk 0:02:33.5]} 15. Bxe7 {[%clk 0:02:07]}
15... Nxe7 {[%clk 0:02:34.4]} 16. g4 {[%clk 0:02:00.1]} 16... Qg3+ {[%clk
0:01:59.6]} 17. Kh1 {[%clk 0:02:00]} 17... Qxh3+ {[%clk 0:01:59.9]} 18. Nh2
{[%clk 0:02:00.2]} 18... Bc7 {[%clk 0:02:00.1]} 19. f4 {[%clk 0:01:40.4]} 19...
Bxf4 {[%clk 0:01:58.8]} 20. Qc2 {[%clk 0:01:35]} 20... Bxg4 {[%clk 0:01:00.8]}
21. Rxe7 {[%clk 0:01:27.6]} 21... Rfe8 {[%clk 0:00:31.3]} 22. Rxe8+ {[%clk
0:01:20.2]} 22... Rxe8 {[%clk 0:00:30.9]} 23. Rf1 {[%clk 0:00:54.7]} 23... Re2
{[%clk 0:00:24.8]} 24. Bh7+ {[%clk 0:00:38.9]} 24... Kh8 {[%clk 0:00:19.7]} 25.
Qxe2 {[%clk 0:00:39.8]} 25... Bxe2 {[%clk 0:00:19.5]} 26. Rxf4 {[%clk
0:00:40.3]} 26... Kxh7 {[%clk 0:00:16.9]} 27. Nd4 {[%clk 0:00:39.5]} 27... Bd3
{[%clk 0:00:16.4]} 28. Rf2 {[%clk 0:00:28.1]} 28... Be4+ {[%clk 0:00:15.5]} 29.
Kg1 {[%clk 0:00:28.4]} 29... Qg3+ {[%clk 0:00:15.3]} 30. Kf1 {[%clk 0:00:28.9]}
30... Bd3+ {[%clk 0:00:15.8]} 31. Ke1 {[%clk 0:00:28.1]} 31... Qe3+ {[%clk
0:00:14.6]} 32. Ne2 {[%clk 0:00:26.5]} 32... f5 {[%clk 0:00:10.9]} 33. Nf1
{[%clk 0:00:24.5]} 33... Qb6 {[%clk 0:00:09.6]} 34. Nd4 {[%clk 0:00:20.2]} 34...
Be4 {[%clk 0:00:08.3]} 35. Ne3 {[%clk 0:00:19.9]} 35... g6 {[%clk 0:00:07.3]}
36. b4 {[%clk 0:00:14.1]} 36... Qc7 {[%clk 0:00:07.2]} 37. Nd1 {[%clk 0:00:14]}
37... Qg3 {[%clk 0:00:06.2]} 38. Nb3 {[%clk 0:00:13.4]} 38... h5 {[%clk
0:00:05.7]} 39. Nc5 {[%clk 0:00:13]} 39... h4 {[%clk 0:00:05.7]} 40. Nxe4 {[%clk
0:00:13.3]} 40... dxe4 {[%clk 0:00:05.9]} 41. Ke2 {[%clk 0:00:13.2]} 41... h3
{[%clk 0:00:06.4]} 42. Ne3 {[%clk 0:00:12.1]} 42... f4 {[%clk 0:00:05.7]} 43.
Nf1 {[%clk 0:00:11.8]} 43... Qd3+ {[%clk 0:00:05.7]} 44. Ke1 {[%clk 0:00:11.9]}
44... f3 {[%clk 0:00:04.9]} 45. Rh2 {[%clk 0:00:11.7]} 45... Kg7 {[%clk
0:00:04.7]} 46. Ng3 {[%clk 0:00:11]} 46... e3 {[%clk 0:00:04.8]} 0-1

[Event "*** SCC Grand Prix: Titled Tuesday Blitz"]
[Site "Chess.com"]
[Date "2020.08.25"]
[Round "6"]
[White "MoreChessJulia"]
[Black "ClydeHillKid"]
[Result "1/2-1/2"]
[WhiteElo "1906"]
[BlackElo "2348"]
[TimeControl "180+1"]
[EndTime "11:08:56 PDT"]
[Termination "Game drawn by stalemate"]

1. d4 {[%clk 0:03:00.1]} 1... d5 {[%clk 0:02:59.7]} 2. c4 {[%clk 0:02:59.9]}
2... e6 {[%clk 0:02:59.7]} 3. Nc3 {[%clk 0:02:58]} 3... Nf6 {[%clk 0:02:59.3]}
4. cxd5 {[%clk 0:02:58]} 4... exd5 {[%clk 0:02:59.1]} 5. Bg5 {[%clk 0:02:54.6]}
5... c6 {[%clk 0:02:58.8]} 6. e3 {[%clk 0:02:46.8]} 6... Bd6 {[%clk 0:02:58]} 7.
Bd3 {[%clk 0:02:37.1]} 7... O-O {[%clk 0:02:57.2]} 8. Nge2 {[%clk 0:02:36.8]}
8... h6 {[%clk 0:02:57]} 9. Bf4 {[%clk 0:02:34.9]} 9... Re8 {[%clk 0:02:56.7]}
10. O-O {[%clk 0:02:29.3]} 10... Bg4 {[%clk 0:02:55.2]} 11. f3 {[%clk
0:02:28.6]} 11... Bh5 {[%clk 0:02:54.5]} 12. g4 {[%clk 0:02:27.3]} 12... Bg6
{[%clk 0:02:53.2]} 13. Bxg6 {[%clk 0:02:25.9]} 13... fxg6 {[%clk 0:02:54.1]} 14.
Bxd6 {[%clk 0:02:22.1]} 14... Qxd6 {[%clk 0:02:55]} 15. Qd2 {[%clk 0:02:19.6]}
15... Nbd7 {[%clk 0:02:53.9]} 16. Nf4 {[%clk 0:02:18.9]} 16... g5 {[%clk
0:02:53.1]} 17. Nd3 {[%clk 0:02:16.7]} 17... a6 {[%clk 0:02:50.3]} 18. Rae1
{[%clk 0:02:15.2]} 18... c5 {[%clk 0:02:50.2]} 19. dxc5 {[%clk 0:02:06.8]} 19...
Nxc5 {[%clk 0:02:51.1]} 20. Nxc5 {[%clk 0:02:06.4]} 20... Qxc5 {[%clk 0:02:52]}
21. Qd4 {[%clk 0:02:06.4]} 21... b6 {[%clk 0:02:41.2]} 22. Qxc5 {[%clk 0:02:05]}
22... bxc5 {[%clk 0:02:42.1]} 23. Re2 {[%clk 0:02:02.5]} 23... d4 {[%clk
0:02:39.8]} 24. Nd1 {[%clk 0:02:02.1]} 24... d3 {[%clk 0:02:35]} 25. Rd2 {[%clk
0:02:01.7]} 25... c4 {[%clk 0:02:35.4]} 26. e4 {[%clk 0:01:59.9]} 26... Rac8
{[%clk 0:02:31.6]} 27. Nc3 {[%clk 0:01:58]} 27... Nd7 {[%clk 0:02:28.2]} 28. Nd5
{[%clk 0:01:57.1]} 28... Ne5 {[%clk 0:02:21.9]} 29. Kf2 {[%clk 0:01:52.9]} 29...
Kf7 {[%clk 0:02:21.2]} 30. Rc1 {[%clk 0:01:52]} 30... Ke6 {[%clk 0:02:11.8]} 31.
Ke3 {[%clk 0:01:43]} 31... Rc6 {[%clk 0:01:59.1]} 32. Nb4 {[%clk 0:01:37.9]}
32... Rb6 {[%clk 0:01:44.1]} 33. a3 {[%clk 0:01:36]} 33... Rf8 {[%clk
0:01:42.2]} 34. Rf1 {[%clk 0:01:25]} 34... Rb7 {[%clk 0:01:41.7]} 35. h3 {[%clk
0:01:24.5]} 35... Rbf7 {[%clk 0:01:41]} 36. Rdf2 {[%clk 0:01:22.7]} 36... Kd6
{[%clk 0:01:26.6]} 37. Nxa6 {[%clk 0:01:21.8]} 37... Kc6 {[%clk 0:01:11.4]} 38.
Nb4+ {[%clk 0:01:20.7]} 38... Kb5 {[%clk 0:01:07.4]} 39. Kd4 {[%clk 0:01:17.9]}
39... Nxf3+ {[%clk 0:01:06.4]} 40. Kd5 {[%clk 0:01:17.9]} 40... Ne5 {[%clk
0:00:58.3]} 41. Rxf7 {[%clk 0:01:09.5]} 41... Rxf7 {[%clk 0:00:59.2]} 42. Rxf7
{[%clk 0:01:08.4]} 42... Nxf7 {[%clk 0:01:00.1]} 43. e5 {[%clk 0:01:05.8]} 43...
Nxe5 {[%clk 0:00:44.9]} 44. Kxe5 {[%clk 0:01:04.8]} 44... Ka4 {[%clk 0:00:42]}
45. Na2 {[%clk 0:01:04]} 45... Kb3 {[%clk 0:00:41.2]} 46. Nc3 {[%clk 0:01:02.8]}
46... Kxb2 {[%clk 0:00:41.6]} 47. Kd4 {[%clk 0:01:02.1]} 47... Kb3 {[%clk
0:00:39.7]} 48. a4 {[%clk 0:01:00.1]} 48... Kb4 {[%clk 0:00:39.2]} 49. a5 {[%clk
0:00:59.3]} 49... Kxa5 {[%clk 0:00:38.3]} 50. Kxc4 {[%clk 0:00:59.8]} 50... d2
{[%clk 0:00:38.8]} 51. Kd3 {[%clk 0:01:00.2]} 51... Kb4 {[%clk 0:00:38.5]} 52.
Kxd2 {[%clk 0:01:00.2]} 52... Kc4 {[%clk 0:00:39.2]} 53. Ne2 {[%clk 0:00:58.2]}
53... Kd5 {[%clk 0:00:38.5]} 54. Ke3 {[%clk 0:00:58.4]} 54... Ke5 {[%clk
0:00:38.8]} 55. Ng3 {[%clk 0:00:56.5]} 55... g6 {[%clk 0:00:38.4]} 56. Nf1
{[%clk 0:00:52.6]} 56... Kd5 {[%clk 0:00:37.2]} 57. Nd2 {[%clk 0:00:50.5]} 57...
Ke5 {[%clk 0:00:36]} 58. Nf3+ {[%clk 0:00:49.1]} 58... Kd5 {[%clk 0:00:36.2]}
59. h4 {[%clk 0:00:47.8]} 59... gxh4 {[%clk 0:00:35.1]} 60. Nxh4 {[%clk
0:00:47.4]} 60... h5 {[%clk 0:00:13.9]} 61. g5 {[%clk 0:00:47]} 61... Ke5 {[%clk
0:00:14]} 62. Kf3 {[%clk 0:00:47]} 62... Ke6 {[%clk 0:00:12.2]} 63. Kf4 {[%clk
0:00:47]} 63... Kd5 {[%clk 0:00:12.4]} 64. Nxg6 {[%clk 0:00:46.5]} 64... Ke6
{[%clk 0:00:12.7]} 65. Nh4 {[%clk 0:00:46.2]} 65... Kf7 {[%clk 0:00:12.9]} 66.
Kf5 {[%clk 0:00:46.1]} 66... Kg7 {[%clk 0:00:13.3]} 67. g6 {[%clk 0:00:46.1]}
67... Kh6 {[%clk 0:00:13.7]} 68. Kf6 {[%clk 0:00:45.6]} 1/2-1/2

[Event "*** SCC Grand Prix: Titled Tuesday Blitz"]
[Site "Chess.com"]
[Date "2020.08.25"]
[Round "6"]
[White "Alembong"]
[Black "MariaFominykh"]
[Result "1-0"]
[WhiteElo "2450"]
[BlackElo "2293"]
[TimeControl "180+1"]
[EndTime "11:08:57 PDT"]
[Termination "Alembong won on time"]

1. d4 {[%clk 0:03:00.9]} 1... d6 {[%clk 0:02:58.1]} 2. Nf3 {[%clk 0:02:59.9]}
2... g6 {[%clk 0:02:57.4]} 3. g3 {[%clk 0:02:59.1]} 3... Bg7 {[%clk 0:02:57.9]}
4. Bg2 {[%clk 0:02:58.1]} 4... Nf6 {[%clk 0:02:56.3]} 5. O-O {[%clk 0:02:57.2]}
5... O-O {[%clk 0:02:56]} 6. b3 {[%clk 0:02:56.8]} 6... a5 {[%clk 0:02:53.9]} 7.
Bb2 {[%clk 0:02:55.1]} 7... a4 {[%clk 0:02:52.1]} 8. c4 {[%clk 0:02:55.1]} 8...
c6 {[%clk 0:02:46.9]} 9. Nbd2 {[%clk 0:02:50.8]} 9... Bf5 {[%clk 0:02:25.3]} 10.
Nh4 {[%clk 0:02:47]} 10... Bd7 {[%clk 0:02:21]} 11. e4 {[%clk 0:02:45.7]} 11...
e5 {[%clk 0:02:02.9]} 12. Qc2 {[%clk 0:02:20.9]} 12... Re8 {[%clk 0:01:48.9]}
13. Rfe1 {[%clk 0:02:02]} 13... Na6 {[%clk 0:01:40.4]} 14. dxe5 {[%clk
0:01:51.6]} 14... dxe5 {[%clk 0:01:39]} 15. c5 {[%clk 0:01:50.4]} 15... Be6
{[%clk 0:01:19.1]} 16. Red1 {[%clk 0:01:12.3]} 16... Qa5 {[%clk 0:01:06.7]} 17.
Nc4 {[%clk 0:01:06.9]} 17... Bxc4 {[%clk 0:01:01.3]} 18. Qxc4 {[%clk 0:01:06.5]}
18... a3 {[%clk 0:00:51.5]} 19. Bc3 {[%clk 0:01:03.7]} 19... Qxc5 {[%clk
0:00:51.5]} 20. Qxc5 {[%clk 0:00:58.1]} 20... Nxc5 {[%clk 0:00:50.9]} 21. f3
{[%clk 0:00:58.6]} 21... Bh6 {[%clk 0:00:33.9]} 22. Kf2 {[%clk 0:00:56.1]} 22...
Nfd7 {[%clk 0:00:29.3]} 23. Bf1 {[%clk 0:00:55]} 23... Nf8 {[%clk 0:00:27]} 24.
Ng2 {[%clk 0:00:46.3]} 24... Bg7 {[%clk 0:00:20.3]} 25. Ne3 {[%clk 0:00:46.3]}
25... b5 {[%clk 0:00:17.3]} 26. Rac1 {[%clk 0:00:45.5]} 26... Nfe6 {[%clk
0:00:16.6]} 27. Rd6 {[%clk 0:00:41.6]} 27... Rec8 {[%clk 0:00:15.3]} 28. Rcd1
{[%clk 0:00:40.6]} 28... Bf8 {[%clk 0:00:14.5]} 29. R6d2 {[%clk 0:00:39.7]}
29... f6 {[%clk 0:00:14.2]} 30. Bh3 {[%clk 0:00:37.8]} 30... Rc7 {[%clk
0:00:12.1]} 31. Ng4 {[%clk 0:00:34.2]} 31... Kf7 {[%clk 0:00:10.9]} 32. Ne3
{[%clk 0:00:32.8]} 32... h5 {[%clk 0:00:09.9]} 33. Bf1 {[%clk 0:00:30.5]} 33...
Rb8 {[%clk 0:00:08.6]} 34. Rc1 {[%clk 0:00:29.6]} 34... b4 {[%clk 0:00:08.3]}
35. Ba1 {[%clk 0:00:29.5]} 35... Nd7 {[%clk 0:00:07.3]} 36. Bc4 {[%clk
0:00:28.7]} 36... Nb6 {[%clk 0:00:06.2]} 37. Be2 {[%clk 0:00:27.7]} 37... Nd4
{[%clk 0:00:05.2]} 38. Bxd4 {[%clk 0:00:26.1]} 38... exd4 {[%clk 0:00:06.1]} 39.
Rxd4 {[%clk 0:00:26]} 39... Rd7 {[%clk 0:00:04.9]} 40. Rxd7+ {[%clk 0:00:24.9]}
40... Nxd7 {[%clk 0:00:05.1]} 41. Rxc6 {[%clk 0:00:25.1]} 41... Bc5 {[%clk
0:00:05.1]} 42. Bc4+ {[%clk 0:00:24.3]} 42... Ke7 {[%clk 0:00:05.1]} 43. Ke2
{[%clk 0:00:24.6]} 43... Bxe3 {[%clk 0:00:04.2]} 44. Kxe3 {[%clk 0:00:24.5]}
44... Ne5 {[%clk 0:00:04.4]} 45. Rc7+ {[%clk 0:00:24.4]} 45... Kd6 {[%clk
0:00:04.3]} 46. Rg7 {[%clk 0:00:22.8]} 46... Nxc4+ {[%clk 0:00:04.7]} 47. bxc4
{[%clk 0:00:22.9]} 47... b3 {[%clk 0:00:05.3]} 48. axb3 {[%clk 0:00:22.5]} 48...
Rxb3+ {[%clk 0:00:03.1]} 49. Kd4 {[%clk 0:00:18.3]} 49... Rb2 {[%clk 0:00:02.6]}
50. Ra7 {[%clk 0:00:18]} 50... a2 {[%clk 0:00:02.2]} 51. f4 {[%clk 0:00:17.2]}
1-0

[Event "*** SCC Grand Prix: Titled Tuesday Blitz"]
[Site "Chess.com"]
[Date "2020.08.25"]
[Round "6"]
[White "barbara25"]
[Black "chigorin28"]
[Result "1-0"]
[WhiteElo "2292"]
[BlackElo "2449"]
[TimeControl "180+1"]
[EndTime "11:08:58 PDT"]
[Termination "barbara25 won by checkmate"]

1. e4 {[%clk 0:02:59.7]} 1... c6 {[%clk 0:02:59.2]} 2. d4 {[%clk 0:02:49.3]}
2... d5 {[%clk 0:02:58.7]} 3. f3 {[%clk 0:02:38.2]} 3... e6 {[%clk 0:02:55.8]}
4. Nc3 {[%clk 0:02:37.8]} 4... Bb4 {[%clk 0:02:53.1]} 5. a3 {[%clk 0:02:37.1]}
5... Bxc3+ {[%clk 0:02:52.8]} 6. bxc3 {[%clk 0:02:38]} 6... Nd7 {[%clk
0:02:48.2]} 7. Ne2 {[%clk 0:02:34.7]} 7... Ne7 {[%clk 0:02:48.1]} 8. Ng3 {[%clk
0:02:34]} 8... O-O {[%clk 0:02:47.7]} 9. Bd3 {[%clk 0:02:33.7]} 9... c5 {[%clk
0:02:45.4]} 10. O-O {[%clk 0:02:33.2]} 10... c4 {[%clk 0:02:45.8]} 11. Be2
{[%clk 0:02:33.2]} 11... f5 {[%clk 0:02:43.6]} 12. exf5 {[%clk 0:02:32.4]} 12...
exf5 {[%clk 0:02:40.6]} 13. f4 {[%clk 0:02:31.1]} 13... Nf6 {[%clk 0:02:37.1]}
14. Bf3 {[%clk 0:02:30.9]} 14... Ne4 {[%clk 0:02:33.7]} 15. Bxe4 {[%clk
0:02:30.9]} 15... dxe4 {[%clk 0:02:30.4]} 16. Be3 {[%clk 0:02:30.8]} 16... Nd5
{[%clk 0:02:30.6]} 17. Qd2 {[%clk 0:02:30.8]} 17... b6 {[%clk 0:02:28.3]} 18.
Rfb1 {[%clk 0:02:30.6]} 18... Qc7 {[%clk 0:02:21.1]} 19. a4 {[%clk 0:02:30.4]}
19... Bd7 {[%clk 0:02:20]} 20. a5 {[%clk 0:02:30.3]} 20... b5 {[%clk 0:02:19.6]}
21. Ne2 {[%clk 0:02:28.2]} 21... a6 {[%clk 0:02:18.9]} 22. g3 {[%clk 0:02:27.7]}
22... Rf6 {[%clk 0:02:16.9]} 23. Nc1 {[%clk 0:02:26.9]} 23... Raf8 {[%clk
0:02:03]} 24. Na2 {[%clk 0:02:25.9]} 24... h6 {[%clk 0:01:56.3]} 25. Nb4 {[%clk
0:02:24.8]} 25... Qd6 {[%clk 0:01:56.2]} 26. Nxd5 {[%clk 0:02:24.2]} 26... Qxd5
{[%clk 0:01:57.1]} 27. Rf1 {[%clk 0:02:22.5]} 27... h5 {[%clk 0:01:52.7]} 28. h4
{[%clk 0:02:18.5]} 28... Rg6 {[%clk 0:01:46.9]} 29. Kh2 {[%clk 0:02:18.5]} 29...
Rg4 {[%clk 0:01:43.5]} 30. Rg1 {[%clk 0:02:17.7]} 30... Rf6 {[%clk 0:01:39.9]}
31. Rg2 {[%clk 0:02:17.6]} 31... Rfg6 {[%clk 0:01:40]} 32. Qc1 {[%clk
0:02:12.5]} 32... Qe6 {[%clk 0:01:26.6]} 33. Qa3 {[%clk 0:02:11.6]} 33... Qf6
{[%clk 0:01:26.7]} 34. Qc5 {[%clk 0:02:08]} 34... Kh7 {[%clk 0:01:19]} 35. Qe5
{[%clk 0:01:57.2]} 35... Qd8 {[%clk 0:01:10.7]} 36. Qd5 {[%clk 0:01:47]} 36...
Qe7 {[%clk 0:01:04.5]} 37. Qe5 {[%clk 0:01:45.6]} 37... Qf7 {[%clk 0:00:54.4]}
38. Qc7 {[%clk 0:01:28.9]} 38... Rc6 {[%clk 0:00:48.1]} 39. Qe5 {[%clk
0:01:27.7]} 39... Re6 {[%clk 0:00:43.8]} 40. Qd5 {[%clk 0:01:25.9]} 40... Qe7
{[%clk 0:00:43.8]} 41. Qc5 {[%clk 0:01:21.3]} 41... Qf7 {[%clk 0:00:32.3]} 42.
Qd5 {[%clk 0:01:20.8]} 42... Bc6 {[%clk 0:00:32.6]} 43. Qc5 {[%clk 0:01:20.6]}
43... Qd7 {[%clk 0:00:24]} 44. Qxf5+ {[%clk 0:01:01.7]} 44... Kh6 {[%clk
0:00:17.2]} 45. Qc5 {[%clk 0:00:55.1]} 45... Kh7 {[%clk 0:00:13.4]} 46. Qxh5+
{[%clk 0:00:52.9]} 46... Kg8 {[%clk 0:00:13.8]} 47. Qxg4 {[%clk 0:00:50]} 47...
Qe7 {[%clk 0:00:13.9]} 48. d5 {[%clk 0:00:46.8]} 48... Bxd5 {[%clk 0:00:13.7]}
49. Rd1 {[%clk 0:00:46.5]} 49... Bc6 {[%clk 0:00:12.7]} 50. f5 {[%clk
0:00:45.7]} 50... Rd6 {[%clk 0:00:09.9]} 51. Rxd6 {[%clk 0:00:45.4]} 51... Qxd6
{[%clk 0:00:10.2]} 52. Rd2 {[%clk 0:00:45.5]} 52... Qc7 {[%clk 0:00:05.9]} 53.
Bg5 {[%clk 0:00:41.1]} 53... Qxa5 {[%clk 0:00:02.9]} 54. Rd8+ {[%clk 0:00:40.4]}
54... Kf7 {[%clk 0:00:02.6]} 55. Rd2 {[%clk 0:00:38.9]} 55... Bd5 {[%clk
0:00:01.5]} 56. Rxd5 {[%clk 0:00:36.3]} 56... Qa2 {[%clk 0:00:01.8]} 57. Qh5+
{[%clk 0:00:34.9]} 57... Kf8 {[%clk 0:00:02.3]} 58. Rd8# {[%clk 0:00:34.3]} 1-0

[Event "*** SCC Grand Prix: Titled Tuesday Blitz"]
[Site "Chess.com"]
[Date "2020.08.25"]
[Round "6"]
[White "AntonovaNadezhda"]
[Black "MrChampion_Coach"]
[Result "0-1"]
[WhiteElo "2008"]
[BlackElo "2407"]
[TimeControl "180+1"]
[EndTime "11:08:59 PDT"]
[Termination "MrChampion_Coach won on time"]

1. d4 {[%clk 0:03:00.9]} 1... Nf6 {[%clk 0:02:59.4]} 2. Nf3 {[%clk 0:03:00.8]}
2... e6 {[%clk 0:02:59.4]} 3. e3 {[%clk 0:03:00.3]} 3... b6 {[%clk 0:03:00.3]}
4. Nbd2 {[%clk 0:03:00]} 4... Bb7 {[%clk 0:02:58.8]} 5. Bd3 {[%clk 0:03:00.4]}
5... c5 {[%clk 0:02:59.1]} 6. c3 {[%clk 0:03:00.1]} 6... Nc6 {[%clk 0:02:57.4]}
7. O-O {[%clk 0:02:59.9]} 7... Be7 {[%clk 0:02:56.8]} 8. Re1 {[%clk 0:02:58.8]}
8... cxd4 {[%clk 0:02:56.9]} 9. exd4 {[%clk 0:02:56.1]} 9... O-O {[%clk
0:02:55.7]} 10. Qe2 {[%clk 0:02:53.5]} 10... Nd5 {[%clk 0:02:53.3]} 11. Ne4
{[%clk 0:02:50]} 11... f5 {[%clk 0:02:52.8]} 12. Ng3 {[%clk 0:02:43.4]} 12...
Qc7 {[%clk 0:02:49.8]} 13. Ne5 {[%clk 0:02:38.3]} 13... Nxe5 {[%clk 0:02:48.2]}
14. Qxe5 {[%clk 0:02:35.5]} 14... Bd6 {[%clk 0:02:43.3]} 15. Qe2 {[%clk
0:02:34.6]} 15... Nf4 {[%clk 0:02:42.4]} 16. Bxf4 {[%clk 0:02:25.7]} 16... Bxf4
{[%clk 0:02:43.3]} 17. Rad1 {[%clk 0:02:17.7]} 17... g6 {[%clk 0:02:29.7]} 18.
Nf1 {[%clk 0:02:13.2]} 18... Rac8 {[%clk 0:02:23.8]} 19. g3 {[%clk 0:02:08.9]}
19... Bh6 {[%clk 0:02:17.5]} 20. f3 {[%clk 0:02:02.8]} 20... Bg7 {[%clk
0:02:02]} 21. Ba6 {[%clk 0:01:59.9]} 21... Bxa6 {[%clk 0:01:52.8]} 22. Qxa6
{[%clk 0:01:58.7]} 22... Qc6 {[%clk 0:01:50.2]} 23. Qd3 {[%clk 0:01:47.3]} 23...
Qd5 {[%clk 0:01:29.4]} 24. b3 {[%clk 0:01:37.1]} 24... Qa5 {[%clk 0:01:28.9]}
25. c4 {[%clk 0:01:31.5]} 25... Qxa2 {[%clk 0:01:28.9]} 26. Re2 {[%clk
0:01:01.1]} 26... Qa5 {[%clk 0:01:26]} 27. d5 {[%clk 0:00:44.2]} 27... e5 {[%clk
0:01:20.6]} 28. Rdd2 {[%clk 0:00:33.2]} 28... d6 {[%clk 0:01:17.8]} 29. Ra2
{[%clk 0:00:32.3]} 29... Qc5+ {[%clk 0:01:18.2]} 30. Kg2 {[%clk 0:00:31.8]}
30... a5 {[%clk 0:01:18.4]} 31. Ne3 {[%clk 0:00:25.7]} 31... e4 {[%clk
0:01:14.2]} 32. fxe4 {[%clk 0:00:23.5]} 32... fxe4 {[%clk 0:01:15.1]} 33. Qxe4
{[%clk 0:00:23.6]} 33... Rce8 {[%clk 0:01:13.5]} 34. Qd3 {[%clk 0:00:23.4]}
34... Re7 {[%clk 0:00:52.5]} 35. Ng4 {[%clk 0:00:22.2]} 35... Ref7 {[%clk
0:00:52.7]} 36. h4 {[%clk 0:00:16.4]} 36... Rf5 {[%clk 0:00:45.2]} 37. Qe3
{[%clk 0:00:13.8]} 37... Qb4 {[%clk 0:00:36.2]} 38. Qe6+ {[%clk 0:00:12.9]}
38... Kh8 {[%clk 0:00:36.1]} 39. Qe3 {[%clk 0:00:12.4]} 39... b5 {[%clk
0:00:34]} 40. Qd3 {[%clk 0:00:10.9]} 40... a4 {[%clk 0:00:31.8]} 41. cxb5 {[%clk
0:00:09.9]} 41... axb3 {[%clk 0:00:27.3]} 42. Ra7 {[%clk 0:00:09.2]} 42... Qxg4
{[%clk 0:00:21.4]} 43. b6 {[%clk 0:00:06.8]} 43... b2 {[%clk 0:00:16.5]} 44. b7
{[%clk 0:00:05.4]} 44... Rf3 {[%clk 0:00:15.7]} 45. Qxf3 {[%clk 0:00:03.9]}
45... Qxf3+ {[%clk 0:00:16.6]} 46. Kh3 {[%clk 0:00:03.4]} 46... Qh1+ {[%clk
0:00:15.3]} 47. Kg4 {[%clk 0:00:02.2]} 47... h5+ {[%clk 0:00:13.8]} 48. Kg5
{[%clk 0:00:01.7]} 48... b1=Q {[%clk 0:00:13.6]} 0-1

[Event "*** SCC Grand Prix: Titled Tuesday Blitz"]
[Site "Chess.com"]
[Date "2020.08.25"]
[Round "6"]
[White "thedjoker98"]
[Black "Vsevolod_Ovchinnikov"]
[Result "0-1"]
[WhiteElo "2562"]
[BlackElo "2429"]
[TimeControl "180+1"]
[EndTime "11:09:00 PDT"]
[Termination "Vsevolod_Ovchinnikov won by checkmate"]

1. d4 {[%clk 0:03:00.9]} 1... Nf6 {[%clk 0:02:59.8]} 2. c4 {[%clk 0:03:00.4]}
2... g6 {[%clk 0:03:00.3]} 3. Nc3 {[%clk 0:02:59.3]} 3... d5 {[%clk 0:03:00.9]}
4. e3 {[%clk 0:02:59.5]} 4... Bg7 {[%clk 0:03:00.3]} 5. Qb3 {[%clk 0:03:00]}
5... c6 {[%clk 0:02:57.7]} 6. Nf3 {[%clk 0:02:59.6]} 6... O-O {[%clk 0:02:57.5]}
7. Bd2 {[%clk 0:03:00.1]} 7... dxc4 {[%clk 0:02:28.4]} 8. Bxc4 {[%clk 0:03:01]}
8... b5 {[%clk 0:02:27.2]} 9. Be2 {[%clk 0:03:00.2]} 9... Be6 {[%clk 0:02:27.5]}
10. Qc2 {[%clk 0:03:00.5]} 10... Bf5 {[%clk 0:02:13.2]} 11. e4 {[%clk
0:02:59.6]} 11... Bg4 {[%clk 0:02:13.4]} 12. Be3 {[%clk 0:02:56]} 12... Qa5
{[%clk 0:01:53.4]} 13. O-O {[%clk 0:02:54.6]} 13... Nbd7 {[%clk 0:01:48.3]} 14.
a4 {[%clk 0:02:36.9]} 14... b4 {[%clk 0:01:47.6]} 15. Nb1 {[%clk 0:02:37]} 15...
Rac8 {[%clk 0:01:45.5]} 16. Nbd2 {[%clk 0:02:37.1]} 16... c5 {[%clk 0:01:35.2]}
17. Nb3 {[%clk 0:02:35.8]} 17... Qc7 {[%clk 0:01:33.1]} 18. dxc5 {[%clk
0:02:28.9]} 18... Qb7 {[%clk 0:00:57.4]} 19. h3 {[%clk 0:02:14]} 19... Be6
{[%clk 0:00:46.1]} 20. Nbd2 {[%clk 0:02:02]} 20... Nxc5 {[%clk 0:00:34.7]} 21.
Bxc5 {[%clk 0:01:59]} 21... Nd7 {[%clk 0:00:34.8]} 22. Rac1 {[%clk 0:01:13]}
22... Rxc5 {[%clk 0:00:35]} 23. Qb1 {[%clk 0:01:12.7]} 23... Rfc8 {[%clk
0:00:35.5]} 24. Rxc5 {[%clk 0:01:12]} 24... Nxc5 {[%clk 0:00:36.4]} 25. a5
{[%clk 0:00:54.2]} 25... Qc7 {[%clk 0:00:32.1]} 26. a6 {[%clk 0:00:47.7]} 26...
Rd8 {[%clk 0:00:27.4]} 27. Rc1 {[%clk 0:00:46.2]} 27... Qb6 {[%clk 0:00:26.6]}
28. Qc2 {[%clk 0:00:34.2]} 28... Nxa6 {[%clk 0:00:22.3]} 29. Nc4 {[%clk
0:00:33.8]} 29... Bxc4 {[%clk 0:00:16]} 30. Bxc4 {[%clk 0:00:34.7]} 30... e6
{[%clk 0:00:15.3]} 31. e5 {[%clk 0:00:28.8]} 31... Nb8 {[%clk 0:00:12.2]} 32.
Rd1 {[%clk 0:00:25.8]} 32... Rc8 {[%clk 0:00:11]} 33. Qe4 {[%clk 0:00:22.5]}
33... Nc6 {[%clk 0:00:10.4]} 34. Rd7 {[%clk 0:00:20.3]} 34... Rc7 {[%clk
0:00:08.1]} 35. Rd1 {[%clk 0:00:19.7]} 35... h6 {[%clk 0:00:07.6]} 36. b3 {[%clk
0:00:19.6]} 36... a5 {[%clk 0:00:06.9]} 37. Nh4 {[%clk 0:00:19.5]} 37... Nxe5
{[%clk 0:00:06.1]} 38. Rd8+ {[%clk 0:00:18.7]} 38... Kh7 {[%clk 0:00:05.7]} 39.
Qa8 {[%clk 0:00:16.1]} 39... Nxc4 {[%clk 0:00:03.9]} 40. bxc4 {[%clk 0:00:15.9]}
40... Rxc4 {[%clk 0:00:02]} 41. Rb8 {[%clk 0:00:15.4]} 41... Rc1+ {[%clk
0:00:02]} 42. Kh2 {[%clk 0:00:15.2]} 42... Qd6+ {[%clk 0:00:02.1]} 43. g3 {[%clk
0:00:15.5]} 43... Rc2 {[%clk 0:00:02.1]} 44. Qf3 {[%clk 0:00:13.2]} 44... Qd4
{[%clk 0:00:01.8]} 45. Kg2 {[%clk 0:00:12.5]} 45... Qf6 {[%clk 0:00:02]} 46. Qd3
{[%clk 0:00:11.2]} 46... Qxf2+ {[%clk 0:00:01.4]} 47. Kh1 {[%clk 0:00:12]} 47...
Qh2# {[%clk 0:00:01.9]} 0-1